[Event "BL 2024-25"]
[Site "Austria"]
[Date "2024.10.13"]
[Round "5.27"]
[White "Peyrer, Konstantin"]
[Black "Halvax, Georg"]
[Result "1/2-1/2"]
[Annotator "TA"]
[ECO "A13"]
[WhiteElo "2415"]
[BlackElo "2443"]
[PlyCount "61"]
[EventDate "2024.08.28"]
[EventType "team-tourn"]
[EventCountry "AUT"]
[SourceTitle "playchess.com"]
[Source "ChessBase"]
[SourceQuality "1"]
[WhiteTeam "Ottakring"]
[BlackTeam "Maria Saal"]
[TimeControl "40/5400+30:1800+30"]

{[%evp 12,61,30,27,20,15,26,36,39,30,27,35,42,38,48,31,70,49,42,58,46,41,46,56,50,66,91,93,80,56,58,49,64,59,60,56,58,47,63,37,73,82,96,97,91,100,85,84,102,93,100,100]} 1. c4 e6 2. g3 d5 3. Bg2 Nf6 4. Nf3 dxc4 5. Qa4+ Nbd7 6. Qxc4 c5 7. d3 Bd6 8. a4 Rb8 9. Nc3 a6 {Prevents Nb5. White is slightly better.} 10. a5 O-O 11. O-O h6 12. Rd1 Qe7 13. Na4 e5 14. Nd2 {[%cal Bf3d2,Bd2b3,Bb3a5,Ba5c4][%mdl 32] White is much more active. The black rooks are passive.} (14. Nh4 {feels hotter.} Qd8 15. Nf5 b5 16. Qh4) 14... Rd8 15. Nb3 b5 16. axb6 Nxb6 17. Nxb6 Rxb6 18. Na5 Bd7 {Against Nc6} 19. Qc2 Bb5 20. Nc4 Rbb8 21. Nxd6 Qxd6 22. Be3 Rbc8 23. Rac1 {[%cal Ba1c1,Bc1c3,Bc3c2,Bc2d2][%mdl 32]} Nd7 24. Qc3 Qe6 25. Qa5 Rf8 26. Rc3 {White is better.} f5 {[%cal Bf7f5,Bf5e4][%mdl 32]} 27. Rdc1 e4 28. dxe4 fxe4 29. R3c2 ({Don't play} 29. Bxc5 Nxc5 30. Rxc5 Rxc5 31. Rxc5 Qf6 $11) 29... c4 30. Qa3 Nf6 31. Rd2 {Weighted Error Value: White=0.05 (flawless) /Black=0.09 (flawless) .  Inaccurate:     	White=1     	Black=2      OK:         	White=12    	Black=7      Best:        	White=2     	---} 1/2-1/2

[Event "BL 2024-25"]
[Site "Austria"]
[Date "2024.10.13"]
[Round "5.28"]
[White "Genser, Harald"]
[Black "Froewis, Georg"]
[Result "1-0"]
[Annotator "TA"]
[ECO "D02"]
[WhiteElo "2266"]
[BlackElo "2429"]
[PlyCount "93"]
[EventDate "2024.08.28"]
[EventType "team-tourn"]
[EventCountry "AUT"]
[SourceTitle "playchess.com"]
[Source "ChessBase"]
[SourceQuality "1"]
[WhiteTeam "Maria Saal"]
[BlackTeam "Ottakring"]
[TimeControl "40/5400+30:1800+30"]

{[%evp 11,93,6,36,25,29,25,46,25,32,16,147,111,130,101,186,150,192,164,177,152,184,162,160,171,181,164,177,170,203,173,262,207,428,296,319,226,217,198,206,192,198,207,195,161,279,283,282,289,340,321,299,239,492,456,496,468,480,480,570,564,515,502,520,422,744,637,783,742,780,744,796,817,1087,1094,1052,1052,964,937,824,777,559,465,703,-9]} 1. d4 {[%emt 0:00:04]} e6 {[%emt 0:00:05]} 2. Nf3 {[%emt 0:02:34]} Nf6 {[%emt 0:00:06]} 3. Bf4 {[%emt 0:01:01]} c5 {[%emt 0:00:14]} 4. e3 {[%emt 0:01:06]} Nc6 {[%emt 0:00:04]} 5. c3 {[%emt 0:01:27]} d5 {[%emt 0:00:13]} 6. Nbd2 {[%emt 0:01:41]} cxd4 {[%emt 0:00:05] is de nieuwe trend.} 7. exd4 {[%emt 0:00:45] D02: 1 d4 d5 2 Pf3 Zijvarianten, inclusief 2...Pf6 3 g3 en 2...Pf6 3 Lf4.} Nh5 {[%emt 0:00:04] OK} 8. Be3 {[%emt 0:01:44]} Bd6 {[%emt 0:00:04] [#] Tegen Ne5. OK} 9. Ne5 $1 {[%emt 0:03:39] OK. Wit staat iets beter.} g6 {[%emt 0:00:30] OK} 10. Nd3 {[%emt 0:02:43]} f5 {[%emt 0:06:33] [#] Fout (1.3)} (10... O-O $11) 11. Bh6 $1 $16 {[%emt 0:10:04] Sterk} Bd7 $146 {[%emt 0:01:45]} ({Predecessor:} 11... Qc7 12. Nf3 Bd7 13. Be2 Rg8 14. Bg5 Nf4 15. Qd2 Nxd3+ 16. Bxd3 Nd8 17. Qe2 Nf7 {1-0 Pham,T (2384)-Stearman,J (2476) Qatar Masters op 2023 (5)}) 12. g3 {[%emt 0:04:56]} Qf6 {[%emt 0:12:29] Fout (0.8)} (12... Qc7 $16) 13. Nf3 {[%emt 0:02:54]} Nd8 {[%emt 0:02:28]} 14. Nde5 {[%emt 0:05:02] OK} Nf7 {[%emt 0:00:39] OK} 15. Nxf7 {[%emt 0:12:36]} Qxf7 {[%emt 0:00:12]} 16. Ne5 {[%emt 0:02:19]} Bxe5 {[%emt 0:00:31] OK} 17. dxe5 {[%emt 0:01:35]} Bc6 {[%emt 0:01:08][%cal Od5d4] Zwart is zwak op de donkere velden} 18. Qd4 {[%emt 0:02:32]} Ng7 {[%emt 0:00:45]} 19. Be2 {[%emt 0:04:30] OK} O-O {[%emt 0:01:18]} 20. h4 {[%emt 0:06:09]} f4 {[%emt 0:03:03] Fout (0.9)} (20... a5 21. a3 Rfc8) 21. g4 $18 {[%emt 0:01:34] Beste (Gemakkelijk)} (21. gxf4 $2 {slaat de verkeerde figuur.} Nf5 22. O-O-O Nxd4 $19) (21. Qxf4 Qc7 22. Qd2 Qxe5 $16) ({Minder sterk is} 21. Bxf4 Nf5 22. Qb4 d4 $16) 21... f3 $2 {[%emt 0:04:34] pakt misschien beter uit. Fout (2.2)} (21... a6 22. a4 b5) 22. Bd1 {[%emt 0:04:37] Onnauwkeurig} Bb5 {[%emt 0:00:49]} 23. Rh3 {[%emt 0:00:53][%cal Oh4h5] h5! zou dodelijk zijn.} Be2 {[%emt 0:01:33] OK} 24. Bxe2 {[%emt 0:00:57] OK} fxe2 {[%emt 0:00:02]} 25. Kxe2 {[%emt 0:00:38]} b5 {[%emt 0:00:05]} 26. Rd1 {[%emt 0:04:37][%cal Ba1d1,Bd1d3,Bd3c3][%mdl 32] EV=11.07. OK} Rac8 {[%emt 0:00:22] OK} 27. b3 {[%emt 0:02:41] Tegen Rc4. En nu zou Rdd3 winnen.} b4 {[%emt 0:01:31] was nodig. Fout (1.2)} (27... Qc7 28. Kf1 b4 29. cxb4 Qb7) 28. Rdd3 {[%emt 0:02:18] OK} (28. cxb4 Rc2+ 29. Rd2 Rc1) 28... bxc3 {[%emt 0:00:35] OK} 29. Rxc3 {[%emt 0:01:12]} Qb7 {[%emt 0:00:17]} 30. Rxc8 {[%emt 0:01:56] OK} Rxc8 {[%emt 0:00:16]} 31. Rc3 {[%emt 0:01:14] met als doel voor Rxc8+. Actief tegenspel! OK} Qa6+ $2 {[%emt 0:02:49] is een betere verdediging. Fout (2.5)} (31... Rf8 32. Kf1 a5) 32. Ke1 {[%emt 0:01:35] OK. Wit is duidelijk aan het winnen.} Rxc3 {[%emt 0:03:39]} 33. Qxc3 {[%emt 0:00:09][%mdl 4096] Eindspel. KQB-KQN} Qb7 {[%emt 0:00:03] Remt Qc7. OK} 34. Qc5 {[%emt 0:01:29] OK} a6 {[%emt 0:01:29]} 35. Qd6 {[%emt 0:00:53] OK} Kf7 {[%emt 0:00:26]} 36. Kf1 {[%emt 0:01:55] OK} Qc8 {[%emt 0:01:46]} 37. Kg2 {[%emt 0:00:44] Zwart moet nu b4 voorkomen.} Qb7 {[%emt 0:01:28] Fout (3.2)} (37... a5 $142 38. Kg1 Kg8) 38. Kg3 {[%emt 0:01:20]} Qc8 {[%emt 0:00:08]} 39. b4 {[%emt 0:02:16]} g5 {[%emt 0:00:20]} 40. Bxg5 {[%emt 0:01:28]} Qc3+ {[%emt 0:00:47]} 41. Kg2 {[%emt 0:35:58] Qe7+ zou dodelijk zijn nu.} Qc4 {[%emt 0:30:04]} 42. Qe7+ {[%emt 0:00:00]} Kg8 {[%emt 0:00:00]} 43. Qd8+ {[%emt 0:00:00]} Kf7 {[%emt 0:00:00]} 44. Qf6+ {[%emt 0:00:00]} Kg8 {[%emt 0:00:00]} 45. Bh6 {[%emt 0:00:00][%csl Gh6][%cal Rf6g7]} Qxg4+ {[%emt 0:00:00]} 46. Kh2 {[%emt 0:00:00]} d4 {[%emt 0:00:00]} (46... Qg6 $142 47. Bxg7 Qxg7 48. Qxe6+ Qf7 49. Qxf7+ (49. Qxa6 Qf4+ 50. Kg1 Qg4+ 51. Kf1 Qd1+ 52. Kg2 Qg4+ 53. Kf1 Qd1+ 54. Kg2 Qg4+ 55. Kf1 $11) 49... Kxf7) {White should consider playing} 47. Qxg7+ $2 {[%emt 0:00:00][%mdl 32768] Zwart voelde zich onwel na de opening.   Blunder waarde: Wit=0.20 (precies) /Zwart=0.70. Gemiste overwinning (7.1).  Gemiste overwinning: 	Wit=1      	---        Fout:        	---       	Zwart=7      Onnauwkeurig:    	Wit=1      	---        OK:         	Wit=12     	Zwart=9      Beste:        	Wit=1      	---        Sterk:        	Wit=1      	---       . Verliest op tijd!?} (47. a4 $18 d3 48. b5) 1-0

[Event "BL 2024-25"]
[Site "Austria"]
[Date "2024.10.13"]
[Round "5.29"]
[White "Steindl, Johannes"]
[Black "Hartl, Daniel"]
[Result "0-1"]
[Annotator "RC"]
[ECO "C78"]
[WhiteElo "2225"]
[BlackElo "2248"]
[PlyCount "66"]
[EventDate "2024.08.28"]
[EventType "team-tourn"]
[EventCountry "AUT"]
[SourceTitle "playchess.com"]
[Source "ChessBase"]
[SourceQuality "1"]
[WhiteTeam "Ottakring"]
[BlackTeam "Maria Saal"]
[TimeControl "40/5400+30:1800+30"]

1. e4 {[%emt 0:00:02]} e5 {[%emt 0:00:22]} 2. Nf3 {[%emt 0:00:05]} Nc6 {[%emt 0:00:04]} 3. Bb5 {[%emt 0:00:04]} a6 {[%emt 0:00:06]} 4. Ba4 {[%emt 0:00:02]} Nf6 {[%emt 0:00:06]} 5. O-O {[%emt 0:00:05]} b5 {[%emt 0:00:05]} 6. Bb3 {[%emt 0:00:03]} Bc5 {[%emt 0:00:06]} 7. a4 {[%emt 0:00:17]} Rb8 {[%emt 0:00:06]} 8. c3 {[%emt 0:00:53]} d6 {[%emt 0:00:07]} 9. d4 {[%emt 0:00:14]} Bb6 {[%emt 0:00:07]} 10. a5 {[%emt 0:00:51]} Ba7 {[%emt 0:00:06]} 11. Be3 {[%emt 0:00:08]} O-O {[%emt 0:00:34]} 12. h3 {[%emt 0:00:37]} exd4 {[%emt 0:24:09]} 13. cxd4 {[%emt 0:00:07]} Nb4 {[%emt 0:00:55]} 14. Ng5 {[%emt 0:02:09]} Qe7 {[%emt 0:06:04]} 15. Nc3 {[%emt 0:07:48]} Bb7 {[%emt 0:05:10]} 16. e5 {[%emt 0:06:46]} Nfd5 {[%emt 0:04:20]} 17. Qh5 {[%emt 0:43:01]} h6 {[%emt 0:00:49]} 18. Nce4 {[%emt 0:00:03]} dxe5 {[%emt 0:04:20]} 19. dxe5 {[%emt 0:00:11]} Bxe3 {[%emt 0:25:16]} 20. fxe3 {[%emt 0:00:09]} c5 {[%emt 0:02:50]} 21. Rxf7 {[%emt 0:18:13]} Rxf7 {[%emt 0:00:07]} 22. Nxf7 {[%emt 0:00:05]} Qxf7 {[%emt 0:00:39]} 23. Qxf7+ {[%emt 0:00:04]} Kxf7 {[%emt 0:00:06]} 24. Nxc5 {[%emt 0:00:25]} Kg6 {[%emt 0:05:18]} 25. Rd1 {[%emt 0:02:58]} Nxe3 {[%emt 0:04:06]} 26. Rd6+ {[%emt 0:00:19]} Kf5 {[%emt 0:01:00]} 27. Kf2 {[%emt 0:08:26]} Nc4 {[%emt 0:02:09]} 28. Bxc4 {[%emt 0:08:35]} bxc4 {[%emt 0:00:09]} 29. Rb6 {[%emt 0:00:02]} Nd3+ {[%emt 0:00:14]} 30. Nxd3 {[%emt 0:00:05]} cxd3 {[%emt 0:00:05]} 31. e6 {[%emt 0:00:03]} d2 {[%emt 0:01:17]} 32. Ke2 {[%emt 0:00:31]} Rd8 {[%emt 0:00:08]} 33. g4+ {[%emt 0:01:18]} Ke5 {[%emt 0:00:43]} 0-1

[Event "BL 2024-25"]
[Site "Austria"]
[Date "2024.10.13"]
[Round "5.30"]
[White "Stallinger, Vanessa"]
[Black "Hoegl, Emanuel"]
[Result "0-1"]
[Annotator "RC"]
[ECO "B13"]
[WhiteElo "1871"]
[BlackElo "2134"]
[PlyCount "70"]
[EventDate "2024.08.28"]
[EventType "team-tourn"]
[EventCountry "AUT"]
[SourceTitle "playchess.com"]
[Source "ChessBase"]
[SourceQuality "1"]
[WhiteTeam "Maria Saal"]
[BlackTeam "Ottakring"]
[TimeControl "40/5400+30:1800+30"]

1. e4 {[%emt 0:00:03]} c6 {[%emt 0:00:04]} 2. c4 {[%emt 0:00:07]} d5 {[%emt 0:00:06]} 3. exd5 {[%emt 0:00:25]} cxd5 {[%emt 0:00:05]} 4. cxd5 {[%emt 0:00:09]} Nf6 {[%emt 0:00:04]} 5. Nc3 {[%emt 0:00:16]} Nxd5 {[%emt 0:00:05]} 6. Nf3 {[%emt 0:00:25]} Nc6 {[%emt 0:01:35]} 7. d4 {[%emt 0:01:23]} Bf5 {[%emt 0:06:47]} 8. a3 {[%emt 0:06:44]} e6 {[%emt 0:10:12]} 9. Bb5 {[%emt 0:08:23]} Nxc3 {[%emt 0:07:30]} 10. bxc3 {[%emt 0:02:49]} Qa5 {[%emt 0:06:05]} 11. Qb3 {[%emt 0:03:43]} Bd6 {[%emt 0:17:24]} 12. O-O {[%emt 0:09:01]} O-O {[%emt 0:00:50]} 13. Bb2 {[%emt 0:21:52]} Qb6 {[%emt 0:10:40]} 14. Qa4 {[%emt 0:04:08]} a6 {[%emt 0:06:10]} 15. Bxc6 {[%emt 0:01:29]} Qxb2 {[%emt 0:00:10]} 16. Bd7 {[%emt 0:10:03]} Rfd8 {[%emt 0:01:59]} 17. Ne5 {[%emt 0:02:41]} Bc2 {[%emt 0:09:16]} 18. Qc4 {[%emt 0:07:17]} Bxe5 {[%emt 0:00:25]} 19. Bxe6 {[%emt 0:01:06]} Bxh2+ {[%emt 0:03:17]} 20. Kxh2 {[%emt 0:01:10]} fxe6 {[%emt 0:00:05]} 21. Qxe6+ {[%emt 0:00:31]} Kh8 {[%emt 0:00:05]} 22. Rac1 {[%emt 0:10:24]} Qxc3 {[%emt 0:03:47]} 23. Rfe1 {[%emt 0:02:28]} Qd2 {[%emt 0:01:54]} 24. Qf7 {[%emt 0:01:39]} Rf8 {[%emt 0:03:35]} 25. Qxb7 {[%emt 0:00:44]} Qf4+ {[%emt 0:00:09]} 26. Kh1 {[%emt 0:00:45]} Qh4+ {[%emt 0:00:05]} 27. Kg1 {[%emt 0:00:10]} Qxf2+ {[%emt 0:00:04]} 28. Kh2 {[%emt 0:01:22]} Qh4+ {[%emt 0:00:05]} 29. Kg1 {[%emt 0:00:07]} Qxd4+ {[%emt 0:00:05]} 30. Kh2 {[%emt 0:00:16]} Rab8 {[%emt 0:04:30]} 31. Qe7 {[%emt 0:01:12]} Bg6 {[%emt 0:00:49]} 32. Rcd1 {[%emt 0:02:30]} Qf4+ {[%emt 0:00:30]} 33. Kh1 {[%emt 0:00:50]} Rbe8 {[%emt 0:00:21]} 34. Qd6 {[%emt 0:00:16]} Rxe1+ {[%emt 0:00:08]} 35. Rxe1 {[%emt 0:00:01]} Qxd6 {[%emt 0:00:08]} 0-1

[Event "BL 2024-25"]
[Site "Austria"]
[Date "2024.10.13"]
[Round "5.31"]
[White "Abasov, Nijat"]
[Black "Nguyen, Thai Dai Van"]
[Result "1/2-1/2"]
[Annotator "TA"]
[ECO "E17"]
[WhiteElo "2619"]
[BlackElo "2663"]
[PlyCount "82"]
[EventDate "2024.08.28"]
[EventType "team-tourn"]
[EventCountry "AUT"]
[SourceTitle "playchess.com"]
[Source "ChessBase"]
[SourceQuality "1"]
[WhiteTeam "Feffernitz"]
[BlackTeam "Mistelbach"]
[TimeControl "40/5400+30:1800+30"]

{[%evp 15,82,0,19,0,0,2,20,8,10,12,15,9,9,4,10,6,24,9,16,16,25,17,28,19,14,11,10,5,20,0,2,4,3,1,1,0,0,0,0,0,0,0,0,-17,0,-27,-6,-10,0,0,0,0,0,0,0,0,0,0,0,0,0,0,0,0,0,0,0,0,0]} 1. c4 {[%emt 0:00:03]} e6 {[%emt 0:00:23]} 2. Nf3 {[%emt 0:00:16]} Nf6 {[%emt 0:00:09]} 3. g3 {[%emt 1:31:41]} d5 {[%emt 0:00:16]} 4. Bg2 {[%emt 0:00:05]} Be7 {[%emt 0:00:09]} 5. O-O {[%emt 1:32:32]} O-O {[%emt 0:00:04]} 6. b3 {[%emt 0:00:03]} b6 {[%emt 1:32:29]} 7. d4 {[%emt 0:00:26]} Bb7 {[%emt 0:00:13]} 8. Bb2 {[%emt 0:00:05]} Nbd7 {[%emt 0:04:23]} 9. Ne1 {[%emt 0:00:11]} Qb8 {[%emt 0:24:53]} 10. Nc3 {[%emt 0:03:45]} Rd8 {[%emt 0:00:09]} 11. cxd5 {[%emt 0:03:30]} Nxd5 {[%emt 0:00:36]} 12. Nxd5 {[%emt 0:01:33]} Bxd5 {[%emt 0:01:47]} 13. e4 {[%emt 0:26:45]} Bb7 {[%emt 0:00:11]} 14. Nd3 {[%emt 0:06:15]} Bf6 {[%emt 0:06:35][%cal Od7c5]} 15. Qe2 {[%emt 0:15:40]} c5 {[%emt 0:02:39]} 16. dxc5 {[%emt 0:01:08]} Bxb2 {[%emt 0:10:54]} 17. Qxb2 {[%emt 0:00:27]} Ba6 {[%emt 0:44:54]} 18. Rfd1 {[%emt 0:00:27]} Bxd3 {[%emt 0:00:05]} 19. Rxd3 {[%emt 0:00:13]} Nxc5 {[%emt 0:00:06]} 20. Rd2 {[%emt 0:01:08]} Rxd2 {[%emt 0:06:00]} 21. Qxd2 {[%emt 0:00:14]} Qd8 {[%emt 0:01:21]} 22. Rd1 {[%emt 0:01:05]} Qxd2 {[%emt 0:00:06]} 23. Rxd2 $11 {[%emt 0:00:03][%mdl 4096] Endgame. KRB-KRN} Kf8 {[%emt 0:02:33]} 24. b4 {[%emt 0:04:28][%cal Oe4e5] [#] Threatens to win with e5!} Na6 $1 {[%emt 0:02:34]} 25. a3 {[%emt 0:00:07]} Rc8 {[%emt 0:04:04]} 26. Rd7 {[%emt 0:35:22]} Rc1+ {[%emt 0:09:05]} 27. Bf1 {[%emt 0:00:09]} Nc7 $1 {[%emt 0:00:03]} 28. Kg2 {[%emt 0:01:25]} Ke8 {[%emt 0:00:35] Repels Rd8+} 29. Rd2 {[%emt 0:00:27]} Ke7 {[%emt 0:05:03]} 30. Be2 {[%emt 0:09:08]} Rc3 {[%emt 0:01:31]} 31. Rd3 {[%emt 0:00:15] The position is equal.} Nb5 {[%emt 0:06:40]} 32. Rxc3 $1 {[%emt 0:02:44]} Nxc3 {[%emt 0:01:06] KB-KN} 33. Kf3 {[%emt 0:03:17]} Kd6 {[%emt 0:02:12] [#] Hoping for ...Ke5.} 34. Ke3 $1 {[%emt 0:06:34]} Kc6 {[%emt 0:08:10] aiming for ...Nxe2.} 35. Bd3 {[%emt 0:03:30]} Nb5 {[%emt 0:00:01]} 36. a4 {[%emt 0:01:06]} Nc3 {[%emt 0:00:09]} 37. Bc2 {[%emt 0:03:04]} b5 {[%emt 0:01:24]} 38. a5 $1 {[%emt 0:00:01]} Na2 {[%emt 0:00:52]} 39. e5 {[%emt 0:00:01]} Nxb4 {[%emt 0:00:45]} 40. Bxh7 {[%emt 0:00:09]} Kd7 {[%emt 0:00:46]} 41. Be4 {[%emt 0:31:41] Black must now prevent Kd4.} Nc6 {[%emt 0:05:43] An uneventful encounter.   Weighted Error Value: White=0.03 (flawless) /Black=0.03 (flawless) .  Inaccurate:     	White=1     	---        OK:         	White=14    	Black=14     Best:        	White=3     	Black=2      Strong:       	White=3     	Black=2} 1/2-1/2

[Event "BL 2024-25"]
[Site "Austria"]
[Date "2024.10.13"]
[Round "5.32"]
[White "Pechac, Jergus"]
[Black "Karthik Venkataraman"]
[Result "1/2-1/2"]
[Annotator "TA"]
[ECO "B33"]
[WhiteElo "2582"]
[BlackElo "2581"]
[PlyCount "61"]
[EventDate "2024.08.28"]
[EventType "team-tourn"]
[EventCountry "AUT"]
[SourceTitle "playchess.com"]
[Source "ChessBase"]
[SourceQuality "1"]
[WhiteTeam "Mistelbach"]
[BlackTeam "Feffernitz"]
[TimeControl "40/5400+30:1800+30"]

{[%evp 23,61,0,18,10,8,20,16,19,12,12,6,0,0,0,0,0,0,0,46,50,52,9,47,63,62,56,44,18,21,27,23,0,8,9,102,110,111,33,33,15]} 1. e4 {[%emt 0:00:04]} c5 {[%emt 0:00:10]} 2. Nf3 {[%emt 0:00:06]} Nc6 {[%emt 0:00:06]} 3. d4 {[%emt 0:00:57]} cxd4 {[%emt 0:00:07]} 4. Nxd4 {[%emt 0:00:04]} Nf6 {[%emt 0:00:06]} 5. Nc3 {[%emt 0:00:06]} e5 {[%emt 0:00:04]} 6. Ndb5 {[%emt 0:00:32]} d6 {[%emt 0:00:07]} 7. Bg5 {[%emt 0:00:27]} a6 {[%emt 0:00:05]} 8. Na3 {[%emt 0:00:04]} b5 {[%emt 0:00:05]} 9. Nab1 {[%emt 0:00:09]} Be7 {[%emt 0:00:22]} 10. Bxf6 {[%emt 0:00:06]} Bxf6 {[%emt 0:00:04]} 11. a4 {[%emt 0:00:07]} b4 {[%emt 0:00:04]} 12. Nd5 {[%emt 0:00:03]} O-O {[%emt 0:00:12]} 13. Bc4 {[%emt 0:00:07]} Be6 {[%emt 0:00:06]} 14. O-O {[%emt 0:00:09]} Bg5 {[%emt 0:00:06]} 15. Qd3 {[%emt 0:04:10] The position is equal.} Na5 {[%emt 0:00:09]} 16. Ba2 {[%emt 0:00:26]} Qb8 {[%emt 0:00:05]} 17. Nd2 {[%emt 0:00:15]} Nb7 {[%emt 0:00:05]} 18. Qe2 {[%emt 0:01:05]} ({But not} 18. Nxb4 Nc5 19. Qc3 Bxa2 (19... Nxa4 20. Qa3 $11) 20. Nxa2 Nxa4 $15) 18... Nc5 {[%emt 0:00:17]} 19. a5 {[%emt 0:00:04]} Bxd2 {[%emt 0:00:13]} 20. Qxd2 {[%emt 0:00:05]} b3 {[%emt 0:00:05]} (20... Nxe4 $11 21. Qxb4 Qxb4 22. Nxb4 Rab8) 21. Bxb3 $14 {[%emt 0:02:53]} Nxe4 {[%emt 0:00:07]} 22. Qc1 {[%emt 0:14:27]} Qb7 {[%emt 0:00:27]} 23. Nb6 {[%emt 0:07:08]} Rad8 {[%emt 0:08:53]} 24. Bxe6 $1 {[%emt 0:02:16]} fxe6 {[%emt 0:00:07]} 25. c4 {[%emt 0:04:01]} d5 {[%emt 0:05:02]} 26. f3 {[%emt 0:01:55]} Nf6 {[%emt 0:00:24]} 27. Qe3 {[%emt 0:04:40]} e4 {[%emt 0:01:28]} 28. fxe4 {[%emt 0:05:47]} Nxe4 {[%emt 0:01:02] [#]} (28... d4 $11 {remains equal.} 29. Qh3 Qxe4) 29. Rxf8+ $1 $16 {[%emt 0:01:27]} Rxf8 {[%emt 0:00:29]} 30. cxd5 {[%emt 0:00:22]} (30. Re1 $16) 30... exd5 $14 {[%emt 0:00:06]} 31. Rd1 {[%emt 0:00:05] Weighted Error Value: White=0.12 (very precise) /Black=0.14 (very precise) .  Mistake:       	White=1     	Black=2      Inaccurate:     	White=2     	Black=1      OK:         	White=9     	Black=8      Best:        	White=1     	---        Strong:       	White=2     	---} 1/2-1/2

[Event "BL 2024-25"]
[Site "Austria"]
[Date "2024.10.13"]
[Round "5.33"]
[White "Ghosh, Diptayan"]
[Black "Kraus, Tomas"]
[Result "1/2-1/2"]
[Annotator "RC"]
[ECO "D35"]
[WhiteElo "2566"]
[BlackElo "2461"]
[PlyCount "51"]
[EventDate "2024.08.28"]
[EventType "team-tourn"]
[EventCountry "AUT"]
[SourceTitle "playchess.com"]
[Source "ChessBase"]
[SourceQuality "1"]
[WhiteTeam "Feffernitz"]
[BlackTeam "Mistelbach"]
[TimeControl "40/5400+30:1800+30"]

1. d4 {[%emt 0:00:57]} d5 {[%emt 0:00:07]} 2. c4 {[%emt 0:00:05]} e6 {[%emt 0:00:05]} 3. Nc3 {[%emt 0:00:06]} Nf6 {[%emt 0:01:08]} 4. cxd5 {[%emt 0:00:04]} exd5 {[%emt 0:00:07]} 5. Bg5 {[%emt 0:00:04]} c6 {[%emt 0:01:47]} 6. e3 {[%emt 0:00:19]} h6 {[%emt 0:00:40]} 7. Bh4 {[%emt 0:00:04]} Be7 {[%emt 0:00:28]} 8. Bd3 {[%emt 0:00:05]} Ne4 {[%emt 0:02:06]} 9. Bxe7 {[%emt 0:00:10]} Qxe7 {[%emt 0:00:06]} 10. Bxe4 {[%emt 0:00:03]} dxe4 {[%emt 0:00:11]} 11. Nge2 {[%emt 0:00:04]} O-O {[%emt 0:03:27]} 12. Ng3 {[%emt 0:14:09]} f5 {[%emt 0:02:33]} 13. O-O {[%emt 0:00:08]} Be6 {[%emt 0:09:34]} 14. f3 {[%emt 0:05:20]} exf3 {[%emt 0:03:11]} 15. Rxf3 {[%emt 0:00:04]} Na6 {[%emt 0:05:04]} 16. Qd2 {[%emt 0:04:03]} Nc7 {[%emt 0:05:45]} 17. Raf1 {[%emt 0:04:27]} Rae8 {[%emt 0:02:28]} 18. b3 {[%emt 0:04:25]} Rf7 {[%emt 0:09:00]} 19. Nce2 {[%emt 0:14:12]} Nd5 {[%emt 0:11:30]} 20. Nf4 {[%emt 0:00:56]} Nxf4 {[%emt 0:01:20]} 21. Rxf4 {[%emt 0:01:06]} a6 {[%emt 0:04:32]} 22. R4f3 {[%emt 0:04:33]} Ref8 {[%emt 0:03:13]} 23. R3f2 {[%emt 0:10:15]} Re8 {[%emt 0:02:26]} 24. Rf3 {[%emt 0:00:10]} Ref8 {[%emt 0:00:38]} 25. R3f2 {[%emt 0:00:05]} Re8 {[%emt 0:00:18]} 26. Rf3 {[%emt 0:00:53]} 1/2-1/2